[Event "Early-Titled-Tuesday-Blitz-February-20-2024"]
[Site "Chess.com"]
[Date "2024.02.20"]
[Round "9"]
[White "klimkoj"]
[Black "ChessQueen"]
[Result "1-0"]
[WhiteElo "2874"]
[BlackElo "2739"]
[TimeControl "180+1"]
[EndTime "9:48:11 PST"]
[Termination "klimkoj won by checkmate"]

1. d4 {[%clk 0:03:00.9]} 1... f5 {[%clk 0:02:36.7]} 2. Nf3 {[%clk 0:03:01.8]}
2... Nf6 {[%clk 0:02:36.5]} 3. g3 {[%clk 0:03:00.6]} 3... g6 {[%clk 0:02:37]} 4.
Bg2 {[%clk 0:03:01.5]} 4... Bg7 {[%clk 0:02:37.5]} 5. O-O {[%clk 0:03:02.4]}
5... O-O {[%clk 0:02:37.6]} 6. c4 {[%clk 0:03:03.1]} 6... d6 {[%clk 0:02:38.2]}
7. Nc3 {[%clk 0:03:02.9]} 7... a5 {[%clk 0:02:38.6]} 8. d5 {[%clk 0:03:02]} 8...
Na6 {[%clk 0:02:36.6]} 9. Re1 {[%clk 0:02:55.4]} 9... Nc5 {[%clk 0:02:35.1]} 10.
Nd4 {[%clk 0:02:55.7]} 10... Bd7 {[%clk 0:02:32.9]} 11. b3 {[%clk 0:02:53.2]}
11... Qe8 {[%clk 0:02:32.3]} 12. Ba3 {[%clk 0:02:51.9]} 12... Nce4 {[%clk
0:02:24.3]} 13. Nxe4 {[%clk 0:02:51.9]} 13... Nxe4 {[%clk 0:02:22.6]} 14. Rc1
{[%clk 0:02:50.8]} 14... c5 {[%clk 0:02:17.1]} 15. Ne6 {[%clk 0:02:38.1]} 15...
Bxe6 {[%clk 0:02:12.4]} 16. dxe6 {[%clk 0:02:39]} 16... b5 {[%clk 0:02:08.9]}
17. cxb5 {[%clk 0:02:31.2]} 17... Qxb5 {[%clk 0:02:07.7]} 18. Qd3 {[%clk
0:02:31.2]} 18... Rab8 {[%clk 0:01:56.2]} 19. Bxe4 {[%clk 0:02:24.2]} 19... fxe4
{[%clk 0:01:56.2]} 20. Qxe4 {[%clk 0:02:25.1]} 20... Rf5 {[%clk 0:01:51.3]} 21.
Qg4 {[%clk 0:02:08.7]} 21... Rbf8 {[%clk 0:01:49.3]} 22. f3 {[%clk 0:01:48.1]}
22... Bd4+ {[%clk 0:01:33.9]} 23. e3 {[%clk 0:01:38.1]} 23... Bg7 {[%clk
0:01:24.1]} 24. f4 {[%clk 0:01:37.2]} 24... Qd3 {[%clk 0:01:15.2]} 25. e4 {[%clk
0:00:58.6]} 25... Bd4+ {[%clk 0:01:14.7]} 26. Kg2 {[%clk 0:00:58.6]} 26... R5f6
{[%clk 0:01:12.5]} 27. h4 {[%clk 0:00:45.1]} 27... h5 {[%clk 0:01:09.2]} 28. Qe2
{[%clk 0:00:43.7]} 28... Qxe2+ {[%clk 0:01:07.4]} 29. Rxe2 {[%clk 0:00:44.6]}
29... Rxe6 {[%clk 0:01:08]} 30. Rcc2 {[%clk 0:00:32.3]} 30... Rb8 {[%clk
0:01:07.8]} 31. Kf3 {[%clk 0:00:28.7]} 31... Kf7 {[%clk 0:01:07.7]} 32. Rc4
{[%clk 0:00:27.7]} 32... Rb5 {[%clk 0:01:03.5]} 33. Ra4 {[%clk 0:00:26.1]} 33...
Rf6 {[%clk 0:00:53.7]} 34. Bc1 {[%clk 0:00:22.1]} 34... Bc3 {[%clk 0:00:47.9]}
35. Rc4 {[%clk 0:00:22.3]} 35... Bd4 {[%clk 0:00:36.6]} 36. Bd2 {[%clk
0:00:22.8]} 36... e5 {[%clk 0:00:33.7]} 37. Ra4 {[%clk 0:00:22.9]} 37... Ke6
{[%clk 0:00:27.7]} 38. Rxa5 {[%clk 0:00:20.7]} 38... Rxa5 {[%clk 0:00:27.8]} 39.
Bxa5 {[%clk 0:00:21.6]} 39... Rf8 {[%clk 0:00:28.2]} 40. Bd2 {[%clk 0:00:19.8]}
40... Ra8 {[%clk 0:00:28.1]} 41. Be3 {[%clk 0:00:20.4]} 41... Ra3 {[%clk
0:00:25.7]} 42. Rc2 {[%clk 0:00:19.9]} 42... exf4 {[%clk 0:00:18.5]} 43. gxf4
{[%clk 0:00:19.3]} 43... Bf6 {[%clk 0:00:18.6]} 44. Rg2 {[%clk 0:00:16.4]} 44...
Kf7 {[%clk 0:00:18.3]} 45. e5 {[%clk 0:00:14.5]} 45... dxe5 {[%clk 0:00:18.5]}
46. fxe5 {[%clk 0:00:13.6]} 46... Bxh4 {[%clk 0:00:17.1]} 47. Bxc5 {[%clk
0:00:13.4]} 47... Ra6 {[%clk 0:00:17.4]} 48. Ke4 {[%clk 0:00:13.5]} 48... Bd8
{[%clk 0:00:15.5]} 49. Kd5 {[%clk 0:00:14]} 49... h4 {[%clk 0:00:15.4]} 50. Rf2+
{[%clk 0:00:13.3]} 50... Kg7 {[%clk 0:00:15.6]} 51. e6 {[%clk 0:00:13.9]} 51...
Ra5 {[%clk 0:00:10.9]} 52. b4 {[%clk 0:00:14]} 52... Ra3 {[%clk 0:00:10.2]} 53.
e7 {[%clk 0:00:14.6]} 53... Bxe7 {[%clk 0:00:10.4]} 54. Bxe7 {[%clk 0:00:15.5]}
54... h3 {[%clk 0:00:11]} 55. Bd6 {[%clk 0:00:14.8]} 55... g5 {[%clk 0:00:10.9]}
56. b5 {[%clk 0:00:15.1]} 56... Rd3+ {[%clk 0:00:10.7]} 57. Kc6 {[%clk
0:00:15.3]} 57... g4 {[%clk 0:00:11.3]} 58. b6 {[%clk 0:00:14.7]} 58... Rxd6+
{[%clk 0:00:11.6]} 59. Kxd6 {[%clk 0:00:14.8]} 59... g3 {[%clk 0:00:11.6]} 60.
Rf3 {[%clk 0:00:14.8]} 60... g2 {[%clk 0:00:11.8]} 61. Rg3+ {[%clk 0:00:14.6]}
61... Kf7 {[%clk 0:00:10.8]} 62. b7 {[%clk 0:00:15.2]} 62... h2 {[%clk
0:00:11.4]} 63. b8=Q {[%clk 0:00:15]} 63... h1=Q {[%clk 0:00:10.2]} 64. Qc7+
{[%clk 0:00:15.3]} 64... Kf6 {[%clk 0:00:10.3]} 65. Qg7+ {[%clk 0:00:15.2]}
65... Kf5 {[%clk 0:00:10.8]} 66. Rf3+ {[%clk 0:00:14.5]} 66... Ke4 {[%clk
0:00:10.1]} 67. Qg4# {[%clk 0:00:15.2]} 1-0

[Event "Early-Titled-Tuesday-Blitz-February-20-2024"]
[Site "Chess.com"]
[Date "2024.02.20"]
[Round "9"]
[White "Bilan_Danila"]
[Black "MasterofMasters2006"]
[Result "1-0"]
[WhiteElo "2480"]
[BlackElo "2304"]
[TimeControl "180+1"]
[EndTime "9:48:18 PST"]
[Termination "Bilan_Danila won by checkmate"]

1. d4 {[%clk 0:02:22.3]} 1... Nf6 {[%clk 0:02:59.1]} 2. Nf3 {[%clk 0:02:21.9]}
2... d5 {[%clk 0:02:57.8]} 3. c4 {[%clk 0:02:21.8]} 3... c6 {[%clk 0:02:58]} 4.
Nc3 {[%clk 0:02:22.2]} 4... dxc4 {[%clk 0:02:56.5]} 5. a4 {[%clk 0:02:21.9]}
5... Bf5 {[%clk 0:02:55.8]} 6. e3 {[%clk 0:02:22.4]} 6... e6 {[%clk 0:02:56.1]}
7. Bxc4 {[%clk 0:02:23.1]} 7... Be7 {[%clk 0:02:56.6]} 8. O-O {[%clk 0:02:23.2]}
8... O-O {[%clk 0:02:56.6]} 9. Qe2 {[%clk 0:02:23.3]} 9... Ne4 {[%clk
0:02:44.4]} 10. Bd3 {[%clk 0:02:22.8]} 10... Nxc3 {[%clk 0:02:43.4]} 11. bxc3
{[%clk 0:02:23.7]} 11... Bxd3 {[%clk 0:02:43.5]} 12. Qxd3 {[%clk 0:02:23.8]}
12... Nd7 {[%clk 0:02:43.5]} 13. Ba3 {[%clk 0:02:20.2]} 13... Bxa3 {[%clk
0:02:36.9]} 14. Rxa3 {[%clk 0:02:21.1]} 14... Nb6 {[%clk 0:02:28.5]} 15. a5
{[%clk 0:02:17]} 15... Nd5 {[%clk 0:02:23.6]} 16. c4 {[%clk 0:02:16.3]} 16...
Nf6 {[%clk 0:02:18.3]} 17. Rb1 {[%clk 0:02:15.9]} 17... Rb8 {[%clk 0:02:18.5]}
18. c5 {[%clk 0:01:57.8]} 18... Qd5 {[%clk 0:02:00.1]} 19. Rab3 {[%clk
0:01:53.2]} 19... Ne4 {[%clk 0:01:52]} 20. Nd2 {[%clk 0:01:34.1]} 20... Nxd2
{[%clk 0:01:46]} 21. Qxd2 {[%clk 0:01:35]} 21... Rbd8 {[%clk 0:01:33.7]} 22.
Rxb7 {[%clk 0:01:28.6]} 22... Qxc5 {[%clk 0:01:33.7]} 23. dxc5 {[%clk
0:01:17.1]} 23... Rxd2 {[%clk 0:01:34.6]} 24. Rxa7 {[%clk 0:01:13.7]} 24... Rc2
{[%clk 0:01:33.4]} 25. g3 {[%clk 0:01:06.8]} 25... Rxc5 {[%clk 0:01:32.8]} 26.
Rbb7 {[%clk 0:01:05]} 26... g6 {[%clk 0:01:27.7]} 27. a6 {[%clk 0:00:58.2]}
27... Ra5 {[%clk 0:01:26.9]} 28. Rb6 {[%clk 0:00:54.6]} 28... c5 {[%clk
0:01:26.2]} 29. Rc7 {[%clk 0:00:50.7]} 29... Kg7 {[%clk 0:01:09.3]} 30. Rxe6
{[%clk 0:00:46.2]} 30... c4 {[%clk 0:00:49.5]} 31. Rb6 {[%clk 0:00:39.7]} 31...
Ra4 {[%clk 0:00:39]} 32. Rbc6 {[%clk 0:00:33.8]} 32... Ra8 {[%clk 0:00:36.3]}
33. Rxc4 {[%clk 0:00:32.5]} 33... Rxc4 {[%clk 0:00:35.6]} 34. Rxc4 {[%clk
0:00:32.1]} 34... Rxa6 {[%clk 0:00:36.5]} 35. Kg2 {[%clk 0:00:29.7]} 35... Rf6
{[%clk 0:00:35.2]} 36. f4 {[%clk 0:00:29.1]} 36... Ra6 {[%clk 0:00:34.6]} 37.
Kf3 {[%clk 0:00:29.2]} 37... Ra2 {[%clk 0:00:34.8]} 38. h3 {[%clk 0:00:29.3]}
38... h5 {[%clk 0:00:34.9]} 39. g4 {[%clk 0:00:27.7]} 39... Rh2 {[%clk
0:00:33.3]} 40. Kg3 {[%clk 0:00:26.1]} 40... Re2 {[%clk 0:00:32.9]} 41. Re4
{[%clk 0:00:26.3]} 41... hxg4 {[%clk 0:00:31.7]} 42. hxg4 {[%clk 0:00:25.7]}
42... Re1 {[%clk 0:00:26.1]} 43. Kf3 {[%clk 0:00:23.3]} 43... Rf1+ {[%clk
0:00:25]} 44. Kg2 {[%clk 0:00:23.9]} 44... Re1 {[%clk 0:00:25.2]} 45. g5 {[%clk
0:00:22.4]} 45... Ra1 {[%clk 0:00:23.4]} 46. Rc4 {[%clk 0:00:21.3]} 46... Ra2+
{[%clk 0:00:20.5]} 47. Kf3 {[%clk 0:00:21.8]} 47... Ra1 {[%clk 0:00:21.4]} 48.
Rc7 {[%clk 0:00:20.7]} 48... Rb1 {[%clk 0:00:19.5]} 49. Ke4 {[%clk 0:00:19]}
49... Rb3 {[%clk 0:00:17.8]} 50. Rd7 {[%clk 0:00:18.9]} 50... Rb4+ {[%clk
0:00:16.6]} 51. Ke5 {[%clk 0:00:19.1]} 51... Rb3 {[%clk 0:00:16.1]} 52. e4
{[%clk 0:00:19.1]} 52... Rb5+ {[%clk 0:00:15.8]} 53. Rd5 {[%clk 0:00:19.3]}
53... Rb6 {[%clk 0:00:16.4]} 54. f5 {[%clk 0:00:19.5]} 54... gxf5 {[%clk
0:00:14.2]} 55. exf5 {[%clk 0:00:20.4]} 55... Rb2 {[%clk 0:00:13.5]} 56. Rd7
{[%clk 0:00:20]} 56... Re2+ {[%clk 0:00:13.1]} 57. Kf4 {[%clk 0:00:20.3]} 57...
Rf2+ {[%clk 0:00:11.7]} 58. Kg4 {[%clk 0:00:20.7]} 58... Rg2+ {[%clk 0:00:11.7]}
59. Kh4 {[%clk 0:00:19.7]} 59... Rf2 {[%clk 0:00:10.3]} 60. Kg4 {[%clk
0:00:19.9]} 60... Rg2+ {[%clk 0:00:10.4]} 61. Kf4 {[%clk 0:00:19]} 61... Rf2+
{[%clk 0:00:10.3]} 62. Ke4 {[%clk 0:00:19.4]} 62... Rg2 {[%clk 0:00:10]} 63. g6
{[%clk 0:00:19.8]} 63... Re2+ {[%clk 0:00:07.3]} 64. Kf3 {[%clk 0:00:19.2]}
64... Re5 {[%clk 0:00:06.1]} 65. Rxf7+ {[%clk 0:00:19.1]} 65... Kh6 {[%clk
0:00:05]} 66. Kf4 {[%clk 0:00:18.9]} 66... Re1 {[%clk 0:00:04]} 67. Rh7# {[%clk
0:00:19]} 1-0

[Event "Early-Titled-Tuesday-Blitz-February-20-2024"]
[Site "Chess.com"]
[Date "2024.02.20"]
[Round "9"]
[White "GeorgiosSouleidis"]
[Black "Juicy_Fork"]
[Result "0-1"]
[WhiteElo "2667"]
[BlackElo "2502"]
[TimeControl "180+1"]
[EndTime "9:48:21 PST"]
[Termination "Juicy_Fork won on time"]

1. e4 {[%clk 0:03:00.9]} 1... e5 {[%clk 0:03:00.2]} 2. Nf3 {[%clk 0:03:00.6]}
2... Nc6 {[%clk 0:03:00.3]} 3. Bc4 {[%clk 0:03:00.8]} 3... Nf6 {[%clk
0:03:00.3]} 4. d3 {[%clk 0:03:01.2]} 4... Bc5 {[%clk 0:03:00.3]} 5. a4 {[%clk
0:03:01.8]} 5... O-O {[%clk 0:03:00]} 6. O-O {[%clk 0:03:01.7]} 6... h6 {[%clk
0:02:59.2]} 7. Be3 {[%clk 0:03:01.9]} 7... d6 {[%clk 0:02:58.3]} 8. h3 {[%clk
0:02:56.1]} 8... Be6 {[%clk 0:02:49.1]} 9. Bxe6 {[%clk 0:02:54.6]} 9... fxe6
{[%clk 0:02:49.2]} 10. Bxc5 {[%clk 0:02:55.1]} 10... dxc5 {[%clk 0:02:50.1]} 11.
Nbd2 {[%clk 0:02:50.9]} 11... Nh7 {[%clk 0:02:29.5]} 12. Nc4 {[%clk 0:02:48.9]}
12... Qf6 {[%clk 0:02:29.3]} 13. c3 {[%clk 0:02:39.8]} 13... Rad8 {[%clk
0:02:23.3]} 14. Qe2 {[%clk 0:02:38.5]} 14... Ng5 {[%clk 0:02:16.6]} 15. Nxg5
{[%clk 0:02:38]} 15... Qxg5 {[%clk 0:02:17.5]} 16. Rad1 {[%clk 0:02:19.7]} 16...
Rf4 {[%clk 0:02:11.5]} 17. f3 {[%clk 0:01:55.9]} 17... Ne7 {[%clk 0:02:08.1]}
18. Kh2 {[%clk 0:01:49.6]} 18... Ng6 {[%clk 0:02:05.3]} 19. g3 {[%clk
0:01:49.6]} 19... Rf7 {[%clk 0:02:03.4]} 20. Qe3 {[%clk 0:01:46]} 20... Qe7
{[%clk 0:02:00.6]} 21. Rf2 {[%clk 0:01:36.2]} 21... Rdf8 {[%clk 0:01:44.6]} 22.
Rdf1 {[%clk 0:01:34.3]} 22... b6 {[%clk 0:01:39.2]} 23. f4 {[%clk 0:01:30.2]}
23... exf4 {[%clk 0:01:35.5]} 24. gxf4 {[%clk 0:01:31.1]} 24... Qh4 {[%clk
0:01:13.6]} 25. f5 {[%clk 0:00:52.4]} 25... exf5 {[%clk 0:00:48.2]} 26. exf5
{[%clk 0:00:52.4]} 26... Re7 {[%clk 0:00:47.5]} 27. Qg3 {[%clk 0:00:46.5]} 27...
Qxg3+ {[%clk 0:00:44.4]} 28. Kxg3 {[%clk 0:00:47.4]} 28... Ne5 {[%clk
0:00:40.6]} 29. Re2 {[%clk 0:00:40.4]} 29... Rfe8 {[%clk 0:00:39.5]} 30. Rfe1
{[%clk 0:00:38.4]} 30... Nc6 {[%clk 0:00:36.3]} 31. Rxe7 {[%clk 0:00:37.6]}
31... Rxe7 {[%clk 0:00:32.3]} 32. Rxe7 {[%clk 0:00:37.6]} 32... Nxe7 {[%clk
0:00:33.2]} 33. Kf4 {[%clk 0:00:38.5]} 33... Kf7 {[%clk 0:00:27.9]} 34. Ke5
{[%clk 0:00:37.6]} 34... g6 {[%clk 0:00:21.2]} 35. fxg6+ {[%clk 0:00:25.2]}
35... Nxg6+ {[%clk 0:00:22.1]} 36. Kf5 {[%clk 0:00:25.5]} 36... Ne7+ {[%clk
0:00:18.4]} 37. Kg4 {[%clk 0:00:19.8]} 37... Kf6 {[%clk 0:00:15.7]} 38. Kh5
{[%clk 0:00:17.4]} 38... Nf5 {[%clk 0:00:15.6]} 39. Nd2 {[%clk 0:00:15]} 39...
Kg7 {[%clk 0:00:13]} 40. Ne4 {[%clk 0:00:13.8]} 40... Ne3 {[%clk 0:00:13]} 41.
Ng3 {[%clk 0:00:11.3]} 41... Nd1 {[%clk 0:00:11.6]} 42. Nf5+ {[%clk 0:00:11.3]}
42... Kf6 {[%clk 0:00:11.8]} 43. Nxh6 {[%clk 0:00:11.5]} 43... Nxb2 {[%clk
0:00:12.2]} 44. Ng4+ {[%clk 0:00:12.4]} 44... Kg7 {[%clk 0:00:12.3]} 45. Nf2
{[%clk 0:00:12.2]} 45... Nxa4 {[%clk 0:00:11.8]} 46. c4 {[%clk 0:00:12.4]} 46...
Nb2 {[%clk 0:00:10.6]} 47. Kg4 {[%clk 0:00:11.1]} 47... a5 {[%clk 0:00:11]} 48.
Ne4 {[%clk 0:00:04.7]} 48... Nxd3 {[%clk 0:00:06]} 49. Kf5 {[%clk 0:00:05.1]}
49... Nb2 {[%clk 0:00:05.3]} 50. Nc3 {[%clk 0:00:04]} 50... a4 {[%clk
0:00:05.1]} 51. Ke6 {[%clk 0:00:04.7]} 51... a3 {[%clk 0:00:04.8]} 52. Kd7
{[%clk 0:00:05]} 52... Nxc4 {[%clk 0:00:03.6]} 53. Kxc7 {[%clk 0:00:05.6]} 53...
b5 {[%clk 0:00:04.2]} 54. Kc6 {[%clk 0:00:04.9]} 54... b4 {[%clk 0:00:04.8]} 55.
Na2 {[%clk 0:00:01.9]} 55... b3 {[%clk 0:00:05]} 56. Nc3 {[%clk 0:00:02.6]}
56... a2 {[%clk 0:00:04.6]} 57. Kxc5 {[%clk 0:00:03.5]} 57... a1=Q {[%clk
0:00:04.5]} 58. Kxc4 {[%clk 0:00:04.4]} 58... b2 {[%clk 0:00:05.1]} 0-1

[Event "Early-Titled-Tuesday-Blitz-February-20-2024"]
[Site "Chess.com"]
[Date "2024.02.20"]
[Round "9"]
[White "Preobrazhenska_D2011"]
[Black "Maxfan2008"]
[Result "1-0"]
[WhiteElo "2387"]
[BlackElo "2532"]
[TimeControl "180+1"]
[EndTime "9:48:24 PST"]
[Termination "Preobrazhenska_D2011 won by checkmate"]

1. e4 {[%clk 0:03:00]} 1... c5 {[%clk 0:02:53.1]} 2. Nf3 {[%clk 0:02:56.9]} 2...
d6 {[%clk 0:02:51.4]} 3. d4 {[%clk 0:02:57.3]} 3... cxd4 {[%clk 0:02:51.3]} 4.
Nxd4 {[%clk 0:02:58.2]} 4... Nf6 {[%clk 0:02:51.4]} 5. Nc3 {[%clk 0:02:58.7]}
5... a6 {[%clk 0:02:51.7]} 6. Bg5 {[%clk 0:02:57]} 6... e6 {[%clk 0:02:50.1]} 7.
f4 {[%clk 0:02:55.6]} 7... Qb6 {[%clk 0:02:49.5]} 8. Qd2 {[%clk 0:02:54.1]} 8...
Qxb2 {[%clk 0:02:48.8]} 9. Rb1 {[%clk 0:02:52.2]} 9... Qa3 {[%clk 0:02:48.6]}
10. e5 {[%clk 0:02:52.5]} 10... dxe5 {[%clk 0:02:46.9]} 11. fxe5 {[%clk
0:02:53.4]} 11... h6 {[%clk 0:02:47.2]} 12. Bh4 {[%clk 0:02:48]} 12... g5 {[%clk
0:02:46.2]} 13. exf6 {[%clk 0:02:40.5]} 13... gxh4 {[%clk 0:02:45.8]} 14. Ne4
{[%clk 0:02:06.2]} 14... Nd7 {[%clk 0:02:34.9]} 15. Bc4 {[%clk 0:01:59.1]} 15...
Ne5 {[%clk 0:02:08.4]} 16. Bb3 {[%clk 0:01:48]} 16... h3 {[%clk 0:01:56.8]} 17.
gxh3 {[%clk 0:01:19.8]} 17... Bc5 {[%clk 0:01:40.6]} 18. Nxc5 {[%clk 0:01:01.8]}
18... Qxc5 {[%clk 0:01:34.9]} 19. Ke2 {[%clk 0:00:45.4]} 19... Bd7 {[%clk
0:01:28.2]} 20. a4 {[%clk 0:00:27.2]} 20... O-O-O {[%clk 0:01:14.6]} 21. c3
{[%clk 0:00:21.4]} 21... Bc6 {[%clk 0:01:06.8]} 22. Rhf1 {[%clk 0:00:20.9]}
22... Rhg8 {[%clk 0:01:03.2]} 23. Rf2 {[%clk 0:00:19.8]} 23... Be4 {[%clk
0:00:59.1]} 24. Ra1 {[%clk 0:00:11.9]} 24... Nd3 {[%clk 0:00:57.5]} 25. Qe3
{[%clk 0:00:04.3]} 25... Nxf2 {[%clk 0:00:53.2]} 26. Kxf2 {[%clk 0:00:04.8]}
26... Rg2+ {[%clk 0:00:47]} 27. Kf1 {[%clk 0:00:05.4]} 27... Rdg8 {[%clk
0:00:22.9]} 28. Qxe4 {[%clk 0:00:03.5]} 28... Rg1+ {[%clk 0:00:21.7]} 29. Kf2
{[%clk 0:00:03]} 29... Rxa1 {[%clk 0:00:18.8]} 30. Bxe6+ {[%clk 0:00:03.2]}
30... Kb8 {[%clk 0:00:16.6]} 31. Bxf7 {[%clk 0:00:03.8]} 31... Rgg1 {[%clk
0:00:11.6]} 32. Bc4 {[%clk 0:00:02.3]} 32... Qa3 {[%clk 0:00:08.5]} 33. Qe8+
{[%clk 0:00:02.5]} 33... Ka7 {[%clk 0:00:08.5]} 34. Qe3 {[%clk 0:00:03]} 34...
Qb2+ {[%clk 0:00:07.8]} 35. Kf3 {[%clk 0:00:02.8]} 35... Raf1+ {[%clk
0:00:05.4]} 36. Bxf1 {[%clk 0:00:02.8]} 36... Rxf1+ {[%clk 0:00:06.3]} 37. Ke4
{[%clk 0:00:02.4]} 37... Qb6 {[%clk 0:00:06.3]} 38. a5 {[%clk 0:00:02.2]} 38...
Qc5 {[%clk 0:00:04.4]} 39. Nc6+ {[%clk 0:00:02.9]} 39... Ka8 {[%clk 0:00:01.9]}
40. Qxc5 {[%clk 0:00:03.8]} 40... bxc6 {[%clk 0:00:02.8]} 41. Qf8+ {[%clk
0:00:04.1]} 41... Kb7 {[%clk 0:00:02.9]} 42. Qe7+ {[%clk 0:00:05]} 42... Kb8
{[%clk 0:00:03]} 43. Qd8+ {[%clk 0:00:05.4]} 43... Kb7 {[%clk 0:00:03.4]} 44.
Qd7+ {[%clk 0:00:06.1]} 44... Kb8 {[%clk 0:00:03.7]} 45. Qxc6 {[%clk 0:00:06.8]}
45... Re1+ {[%clk 0:00:03.6]} 46. Kd5 {[%clk 0:00:07.4]} 46... Rd1+ {[%clk
0:00:03.8]} 47. Kc5 {[%clk 0:00:07.9]} 47... Rb1 {[%clk 0:00:04]} 48. Qd6+
{[%clk 0:00:08.3]} 48... Kb7 {[%clk 0:00:04.1]} 49. Qd7+ {[%clk 0:00:08.7]}
49... Kb8 {[%clk 0:00:04.2]} 50. Kc6 {[%clk 0:00:09.3]} 50... Rb5 {[%clk
0:00:03.1]} 51. Qd8+ {[%clk 0:00:09.4]} 51... Ka7 {[%clk 0:00:03.3]} 52. Qc7+
{[%clk 0:00:09.9]} 52... Ka8 {[%clk 0:00:03.4]} 53. Qc8+ {[%clk 0:00:09.7]}
53... Ka7 {[%clk 0:00:03.7]} 54. Qe6 {[%clk 0:00:08.7]} 54... h5 {[%clk
0:00:03.6]} 55. Qf7+ {[%clk 0:00:08.8]} 55... Ka8 {[%clk 0:00:03.6]} 56. Qe8+
{[%clk 0:00:09]} 56... Ka7 {[%clk 0:00:03.8]} 57. f7 {[%clk 0:00:09]} 57... h4
{[%clk 0:00:03.9]} 58. Qe7+ {[%clk 0:00:09.6]} 58... Ka8 {[%clk 0:00:04]} 59.
f8=Q+ {[%clk 0:00:09.7]} 59... Rb8 {[%clk 0:00:04]} 60. Qb7# {[%clk 0:00:10.2]}
1-0

[Event "Early-Titled-Tuesday-Blitz-February-20-2024"]
[Site "Chess.com"]
[Date "2024.02.20"]
[Round "9"]
[White "davigator"]
[Black "Lion-Al-Messi"]
[Result "1-0"]
[WhiteElo "2387"]
[BlackElo "2525"]
[TimeControl "180+1"]
[EndTime "9:48:26 PST"]
[Termination "davigator won on time"]

1. e4 {[%clk 0:02:56.8]} 1... e6 {[%clk 0:02:56.8]} 2. d4 {[%clk 0:02:55.9]}
2... d5 {[%clk 0:02:53.6]} 3. Nc3 {[%clk 0:02:55.9]} 3... Nf6 {[%clk 0:02:52.1]}
4. e5 {[%clk 0:02:55.6]} 4... Nfd7 {[%clk 0:02:51.8]} 5. f4 {[%clk 0:02:56]}
5... c5 {[%clk 0:02:51.9]} 6. Nf3 {[%clk 0:02:56.4]} 6... Nc6 {[%clk 0:02:52.1]}
7. Be3 {[%clk 0:02:56.6]} 7... a6 {[%clk 0:02:52.4]} 8. Qd2 {[%clk 0:02:55.4]}
8... b5 {[%clk 0:02:52.5]} 9. Nd1 {[%clk 0:02:55.8]} 9... Bb7 {[%clk 0:02:45.8]}
10. c3 {[%clk 0:02:55.6]} 10... Qc7 {[%clk 0:02:43.8]} 11. Bd3 {[%clk
0:02:55.2]} 11... c4 {[%clk 0:02:43.4]} 12. Bc2 {[%clk 0:02:54.9]} 12... Ne7
{[%clk 0:02:41.3]} 13. g4 {[%clk 0:02:51.5]} 13... h5 {[%clk 0:02:40.9]} 14. f5
{[%clk 0:02:51.3]} 14... hxg4 {[%clk 0:02:38.7]} 15. fxe6 {[%clk 0:02:51.5]}
15... fxe6 {[%clk 0:02:38.3]} 16. Ng5 {[%clk 0:02:51.5]} 16... Qb6 {[%clk
0:02:35.7]} 17. O-O {[%clk 0:02:48.8]} 17... O-O-O {[%clk 0:02:32.9]} 18. Nf7
{[%clk 0:02:48.3]} 18... Rh3 {[%clk 0:02:22.3]} 19. Nxd8 {[%clk 0:02:31.7]}
19... Qxd8 {[%clk 0:02:23.2]} 20. Qg2 {[%clk 0:02:27.9]} 20... Nf5 {[%clk
0:02:19.3]} 21. Bf2 {[%clk 0:02:24]} 21... Qg5 {[%clk 0:02:14.7]} 22. Bxf5
{[%clk 0:02:19.9]} 22... exf5 {[%clk 0:02:12.7]} 23. Bg3 {[%clk 0:02:20]} 23...
Be7 {[%clk 0:02:06.5]} 24. Qf2 {[%clk 0:02:15.5]} 24... g6 {[%clk 0:02:01.7]}
25. a4 {[%clk 0:02:09.9]} 25... b4 {[%clk 0:02:01.1]} 26. a5 {[%clk 0:02:10]}
26... b3 {[%clk 0:01:59.6]} 27. Ne3 {[%clk 0:02:06.7]} 27... Nf8 {[%clk
0:01:57.8]} 28. Ng2 {[%clk 0:02:03.7]} 28... Ne6 {[%clk 0:01:53.9]} 29. Nf4
{[%clk 0:02:03.7]} 29... Kd7 {[%clk 0:01:50]} 30. Nxh3 {[%clk 0:02:02.3]} 30...
gxh3 {[%clk 0:01:50.9]} 31. Kh1 {[%clk 0:02:01.8]} 31... Qh5 {[%clk 0:01:32.7]}
32. Rae1 {[%clk 0:01:52.7]} 32... Bc6 {[%clk 0:01:27.2]} 33. Qf3 {[%clk
0:01:48]} 33... Qh7 {[%clk 0:01:22.4]} 34. Bf4 {[%clk 0:01:30.1]} 34... g5
{[%clk 0:01:16.1]} 35. Be3 {[%clk 0:01:27.7]} 35... f4 {[%clk 0:01:07.3]} 36.
Bc1 {[%clk 0:01:26.1]} 36... Kd8 {[%clk 0:01:01.9]} 37. Rg1 {[%clk 0:01:22]}
37... Qf5 {[%clk 0:00:58.2]} 38. Rg4 {[%clk 0:01:19.3]} 38... Bd7 {[%clk
0:00:47.6]} 39. Qxh3 {[%clk 0:01:15.8]} 39... Nxd4 {[%clk 0:00:40.8]} 40. Qh8+
{[%clk 0:01:14.9]} 40... Kc7 {[%clk 0:00:40.3]} 41. Rg2 {[%clk 0:01:08.9]} 41...
Ne6 {[%clk 0:00:35.7]} 42. Qa8 {[%clk 0:01:02.8]} 42... f3 {[%clk 0:00:27]} 43.
Rf2 {[%clk 0:00:59.2]} 43... Bc5 {[%clk 0:00:26.8]} 44. Ref1 {[%clk 0:00:54]}
44... Bxf2 {[%clk 0:00:19.4]} 45. Rxf2 {[%clk 0:00:52.5]} 45... Qb1 {[%clk
0:00:18.7]} 46. Rf1 {[%clk 0:00:52.2]} 46... d4 {[%clk 0:00:14.3]} 47. Qa7+
{[%clk 0:00:48.3]} 47... Kd8 {[%clk 0:00:14.1]} 48. Qb6+ {[%clk 0:00:46.8]}
48... Ke8 {[%clk 0:00:13.6]} 49. cxd4 {[%clk 0:00:43.7]} 49... c3 {[%clk
0:00:12.9]} 50. Qxb3 {[%clk 0:00:38]} 50... f2 {[%clk 0:00:07.7]} 51. Kg2 {[%clk
0:00:36]} 51... Bc6+ {[%clk 0:00:07.5]} 52. Kxf2 {[%clk 0:00:36.3]} 52... Qe4
{[%clk 0:00:06.7]} 53. Qxc3 {[%clk 0:00:34.5]} 53... Qg2+ {[%clk 0:00:06.6]} 54.
Ke1 {[%clk 0:00:34.6]} 54... Bb5 {[%clk 0:00:05.9]} 55. Qf3 {[%clk 0:00:29]}
55... Bxf1 {[%clk 0:00:02]} 56. Qxf1 {[%clk 0:00:28.1]} 56... Qxf1+ {[%clk
0:00:02.3]} 57. Kxf1 {[%clk 0:00:28.1]} 57... Nxd4 {[%clk 0:00:02.9]} 58. Bxg5
{[%clk 0:00:28.3]} 58... Nc6 {[%clk 0:00:02.1]} 59. Bd2 {[%clk 0:00:27.7]} 59...
Nxe5 {[%clk 0:00:02.1]} 60. Ke2 {[%clk 0:00:28.3]} 60... Ng4 {[%clk 0:00:02.2]}
61. h3 {[%clk 0:00:27.9]} 61... Nf6 {[%clk 0:00:02.7]} 62. Kf3 {[%clk 0:00:27]}
62... Kf7 {[%clk 0:00:02.7]} 63. Kf4 {[%clk 0:00:26.4]} 63... Nd5+ {[%clk
0:00:03]} 64. Kf5 {[%clk 0:00:25.8]} 64... Ne7+ {[%clk 0:00:02.9]} 65. Kg5
{[%clk 0:00:25]} 65... Ke6 {[%clk 0:00:02.8]} 66. Bc3 {[%clk 0:00:25.5]} 66...
Nd5 {[%clk 0:00:02.7]} 67. h4 {[%clk 0:00:25.6]} 67... Kf7 {[%clk 0:00:02.8]}
68. h5 {[%clk 0:00:25.9]} 68... Kg8 {[%clk 0:00:03.2]} 69. Kf5 {[%clk
0:00:24.1]} 69... Kh7 {[%clk 0:00:02.9]} 70. Ke6 {[%clk 0:00:23.7]} 70... Ne3
{[%clk 0:00:02.8]} 71. Bd2 {[%clk 0:00:23.1]} 71... Nc4 {[%clk 0:00:02.8]} 72.
Bc1 {[%clk 0:00:22.9]} 72... Kg7 {[%clk 0:00:01.9]} 73. b4 {[%clk 0:00:22.2]}
73... Kh7 {[%clk 0:00:01.2]} 74. Kd5 {[%clk 0:00:22.4]} 1-0